bitfinex/quotes_BTCUSD_20251012
["timestamp","ask_amount","ask_price","bid_price","bid_amount"]
[1760277457819,0.131029,111650.0,111640.0,0.28890725]
[1760277457999,0.131029,111650.0,111640.0,0.10976]
[1760277458197,0.131029,111650.0,111640.0,0.12417205]
[1760277458695,0.14888624,111650.0,111640.0,0.12417205]
[1760277458911,0.14888624,111650.0,111640.0,0.10976]
[1760277459450,0.18398705,111650.0,111640.0,0.10976]
[1760277460503,0.14888624,111650.0,111640.0,0.10976]
[1760277460696,0.17915734,111650.0,111640.0,0.10976]
[1760277461055,0.1881139,111650.0,111640.0,0.10976]
[1760277462135,0.01906124,111660.0,111650.0,0.17913121]
[1760277462335,0.17912381,111660.0,111650.0,0.10976]
[1760277464191,0.21775557,111660.0,111650.0,0.10976]
[1760277464370,0.21775557,111660.0,111650.0,0.05914]
[1760277464511,0.17913121,111650.0,111640.0,0.25555725]
[1760277464710,0.17913121,111650.0,111640.0,0.28890725]
[1760277465207,0.17911517,111660.0,111640.0,0.28890725]
[1760277465341,0.17911517,111660.0,111650.0,0.07641]
[1760277465554,0.17911517,111660.0,111650.0,0.11409]
[1760277465750,0.17911517,111660.0,111650.0,0.16535312]
[1760277466224,0.17911517,111660.0,111650.0,0.34448433]
[1760277466437,0.17911517,111660.0,111650.0,0.32657121]
[1760277467130,0.17911517,111660.0,111650.0,0.14744]
[1760277467438,0.19817641,111660.0,111650.0,0.16535312]
[1760277467805,0.19875993,111660.0,111650.0,0.16535312]
[1760277467972,0.19875993,111660.0,111650.0,0.09682]
[1760277468175,0.19875993,111660.0,111650.0,0.03768]
[1760277468416,0.24815572,111660.0,111650.0,0.03768]
[1760277469017,0.24815572,111660.0,111650.0,0.07103]
[1760277469416,0.20707576,111660.0,111650.0,0.07103]
[1760277469834,0.20707576,111660.0,111650.0,0.34370433]
[1760277470043,0.20707576,111660.0,111650.0,0.14666]
[1760277470710,0.23098292,111660.0,111650.0,0.14666]
[1760277471513,0.20707576,111660.0,111650.0,0.14666]
[1760277472222,0.20815576,111660.0,111650.0,0.09682]
[1760277472704,0.2945859,111660.0,111650.0,0.03768]
[1760277472905,0.2939159,111660.0,111650.0,0.03768]
[1760277473109,0.2945859,111660.0,111650.0,0.03768]
[1760277473516,0.2939159,111660.0,111650.0,0.03768]
[1760277474886,0.2945859,111660.0,111650.0,0.03768]
[1760277475401,0.2939159,111660.0,111650.0,0.03768]
[1760277477630,0.27000874,111660.0,111650.0,0.03768]
[1760277479434,0.22480158,111660.0,111650.0,0.03768]
[1760277479636,0.20574034,111660.0,111650.0,0.09418]
[1760277480264,0.20574034,111660.0,111650.0,0.14281]
[1760277480265,0.20466034,111660.0,111650.0,0.14281]
[1760277480657,0.18801452,111660.0,111650.0,0.14281]
[1760277481517,0.18853452,111660.0,111650.0,0.14281]
[1760277481725,0.18853452,111660.0,111650.0,0.09418]
[1760277483340,0.18021869,111660.0,111650.0,0.09418]
[1760277484202,0.17911517,111660.0,111650.0,0.09418]
[1760277487222,0.13220686,111670.0,111650.0,0.35681188]
[1760277487570,0.17911517,111660.0,111650.0,0.32194121]
[1760277488167,0.13220686,111670.0,111650.0,0.32194121]
[1760277488306,0.17911517,111660.0,111650.0,0.32194121]
[1760277489751,0.17911517,111660.0,111650.0,0.27331121]
[1760277489988,0.17911517,111660.0,111650.0,0.09418]
[1760277490222,0.17911517,111660.0,111650.0,0.27331121]
[1760277490449,0.21024737,111660.0,111650.0,0.09418]
[1760277491156,0.17911517,111660.0,111650.0,0.09418]
[1760277491402,0.17911517,111660.0,111650.0,0.27331121]
[1760277492043,0.17911517,111660.0,111650.0,0.09418]
[1760277492213,0.17911517,111660.0,111650.0,0.06169]
[1760277492581,0.17911517,111660.0,111650.0,0.03768]
[1760277492787,0.21024737,111660.0,111650.0,0.03768]
[1760277494175,0.21024737,111660.0,111650.0,0.07017]
[1760277494705,0.17911517,111660.0,111650.0,0.07017]
[1760277496524,0.17911517,111660.0,111650.0,0.09418]
[1760277497297,0.17911517,111660.0,111650.0,0.03768]
[1760277499340,0.51911517,111660.0,111650.0,0.03768]
[1760277499521,0.53817641,111660.0,111650.0,0.03768]
[1760277499725,0.5651159,111660.0,111650.0,0.03768]
[1760277500191,0.54605466,111660.0,111650.0,0.03768]
[1760277501688,0.61388081,111660.0,111650.0,0.03768]
[1760277501887,0.54605466,111660.0,111650.0,0.03768]
[1760277506029,0.56523651,111660.0,111650.0,0.03768]
[1760277506646,0.56567651,111660.0,111650.0,0.03768]
[1760277507467,0.52818763,111660.0,111650.0,0.03768]
[1760277507704,0.52918763,111660.0,111650.0,0.03768]
[1760277508283,0.59532708,111660.0,111650.0,0.03768]
[1760277510340,0.52918763,111660.0,111650.0,0.03768]
[1760277515200,0.51000578,111660.0,111650.0,0.03768]
[1760277515997,0.52916979,111660.0,111650.0,0.03768]
[1760277516617,0.17913121,111650.0,111610.0,0.02401]
[1760277516849,0.51919541,111610.0,111600.0,0.03768]
[1760277516986,0.51921146,111600.0,111570.0,0.13690362]
[1760277517188,0.51951359,111580.0,111570.0,0.03818143]
[1760277517388,0.51968359,111580.0,111570.0,0.03818143]
[1760277517591,0.51968359,111580.0,111570.0,0.04285342]
[1760277517822,0.36695765,111580.0,111570.0,0.10108342]
[1760277518002,0.02695765,111580.0,111570.0,0.33208307]
[1760277518204,0.17924359,111580.0,111570.0,0.15282342]
[1760277518419,0.17924359,111580.0,111570.0,0.17074938]
[1760277518615,0.17924359,111580.0,111570.0,0.33208307]
[1760277519018,0.17924359,111580.0,111570.0,0.15282342]
[1760277519829,0.17924359,111580.0,111570.0,0.35000903]
[1760277520032,0.17924359,111580.0,111570.0,0.15282342]
[1760277520233,0.17924359,111580.0,111570.0,0.33208307]
[1760277520415,0.17924359,111580.0,111570.0,0.15282342]
[1760277521052,0.17924359,111580.0,111570.0,0.33208307]
[1760277521363,0.17924359,111580.0,111570.0,0.15282342]
[1760277521818,0.2209109,111580.0,111570.0,0.15282342]
[1760277522231,0.2209109,111580.0,111570.0,0.04285342]
[1760277522232,0.2211809,111580.0,111570.0,0.04285342]
[1760277523287,0.5611809,111580.0,111570.0,0.04285342]
[1760277523495,0.5613509,111580.0,111570.0,0.04285342]
[1760277523701,0.34836488,111580.0,111570.0,0.04285342]
[1760277523904,0.52760847,111580.0,111570.0,0.04285342]
[1760277525021,0.53620119,111580.0,111570.0,0.04285342]
[1760277525699,0.53618925,111580.0,111570.0,0.04285342]
[1760277525901,0.53618925,111580.0,111540.0,0.0004]
[1760277525902,0.17929179,111550.0,111540.0,0.0004]
[1760277526119,0.17929179,111550.0,111520.0,0.26518376]
[1760277526120,0.17930787,111540.0,111520.0,0.00996396]
[1760277526333,0.17930787,111540.0,111520.0,0.00271283]
[1760277526334,0.52155394,111530.0,111520.0,0.00271283]
[1760277526546,0.56583272,111530.0,111520.0,0.00271283]
[1760277526776,0.56500968,111530.0,111520.0,0.00271283]
[1760277526981,0.56640968,111530.0,111520.0,0.00563523]
[1760277530933,0.56635405,111530.0,111520.0,0.00563523]
[1760277535867,0.22495405,111530.0,111520.0,0.06484523]
[1760277536142,0.53796142,111530.0,111520.0,0.06484523]
[1760277538661,0.35863748,111530.0,111520.0,0.24418525]
[1760277538871,0.35640748,111530.0,111520.0,0.33698335]
[1760277539107,0.34,111530.0,111520.0,0.29438525]
[1760277539314,0.53575714,111530.0,111520.0,0.29438525]
[1760277539539,0.53797714,111530.0,111520.0,0.06484523]
[1760277539873,0.53797714,111530.0,111520.0,0.02972523]
[1760277540181,0.53797714,111530.0,111520.0,0.00563523]
[1760277540384,0.6125413,111530.0,111520.0,0.00563523]
[1760277540802,0.6139313,111530.0,111520.0,0.00563523]
[1760277542330,0.53936714,111530.0,111520.0,0.00563523]
[1760277544152,0.55834498,111530.0,111520.0,0.00563523]
[1760277544559,0.58531744,111530.0,111520.0,0.00563523]
[1760277545207,0.51934002,111520.0,111510.0,0.0004]
[1760277545432,0.55475106,111520.0,111510.0,0.0004]
[1760277545636,0.63582752,111520.0,111510.0,0.0004]
[1760277545887,0.63721752,111520.0,111510.0,0.00098467]
[1760277546316,0.51935611,111510.0,111500.0,4.624801]
[1760277546544,0.55837715,111510.0,111500.0,4.20652662]
[1760277546750,0.59463708,111510.0,111500.0,4.20652662]
[1760277547588,0.5951382,111510.0,111500.0,4.20652662]
[1760277547910,0.5961382,111510.0,111500.0,4.20652662]
[1760277548064,0.5971382,111510.0,111500.0,4.16252662]
[1760277550043,0.07778209,111510.0,111500.0,4.16252662]
[1760277550251,0.23824735,111510.0,111500.0,4.16252662]
[1760277551090,0.2382563,111510.0,111500.0,4.16252662]
[1760277551907,0.26523664,111510.0,111500.0,4.16311136]
[1760277552105,0.60523664,111510.0,111500.0,4.16311136]
[1760277552367,0.64812164,111510.0,111500.0,4.16311136]
[1760277552571,0.66218545,111510.0,111500.0,4.16311136]
[1760277553166,0.57503802,111510.0,111500.0,4.16311136]
[1760277554241,0.59894518,111510.0,111500.0,4.16311136]
[1760277555276,0.59894518,111510.0,111500.0,4.11911136]
[1760277555479,0.60723771,111510.0,111500.0,4.11911136]
[1760277557322,0.59070857,111510.0,111500.0,4.11911136]
[1760277557517,0.66270471,111510.0,111500.0,4.11911136]
[1760277559966,0.67896513,111510.0,111500.0,4.11911136]
[1760277561054,0.67067376,111510.0,111500.0,4.11911136]
[1760277562212,0.67067376,111510.0,111500.0,4.07511136]
[1760277562660,0.68725508,111510.0,111500.0,4.07511136]
[1760277562872,0.60696641,111510.0,111500.0,4.07511136]
[1760277565570,0.61525647,111510.0,111500.0,4.07511136]
[1760277565772,0.60696641,111510.0,111500.0,4.07511136]
[1760277566373,0.62080805,111510.0,111500.0,4.07511136]
[1760277568366,0.66868808,111510.0,111500.0,4.07511136]
[1760277568582,0.72171087,111510.0,111500.0,4.07511136]
[1760277569426,0.53624364,111510.0,111500.0,4.03111136]
[1760277569635,0.08129572,111510.0,111500.0,4.14151136]
[1760277569850,0.03555916,111510.0,111500.0,4.32088355]
[1760277570077,0.21491527,111510.0,111500.0,4.17923136]
[1760277570291,0.21491527,111510.0,111500.0,4.35860355]
[1760277570719,0.55491527,111510.0,111500.0,4.35860355]
[1760277570927,0.21491527,111510.0,111500.0,4.35860355]
[1760277571439,0.55491527,111510.0,111500.0,4.35860355]
[1760277573339,0.20423905,111520.0,111500.0,4.35860355]
[1760277573340,0.18031507,111520.0,111500.0,4.35860355]
[1760277573593,0.18245611,111510.0,111500.0,4.12867136]
[1760277573798,0.2166212,111510.0,111500.0,4.06883136]
[1760277574010,0.22459214,111510.0,111500.0,4.06883136]
[1760277574435,0.19269722,111510.0,111500.0,4.06883136]
[1760277574646,0.22459214,111510.0,111500.0,4.06883136]
[1760277574850,0.27382454,111510.0,111500.0,4.03111136]
[1760277575268,0.60584264,111510.0,111500.0,4.03111136]
[1760277576304,0.59754153,111510.0,111500.0,4.03111136]
[1760277576639,0.60584366,111510.0,111500.0,4.03111136]
[1760277577154,0.59754153,111510.0,111500.0,4.03111136]
[1760277577360,0.54830913,111510.0,111500.0,4.03111136]
[1760277578192,0.54930913,111510.0,111500.0,4.03111136]
[1760277578797,0.52539611,111510.0,111500.0,4.03111136]
[1760277579222,0.52439611,111510.0,111500.0,4.03111136]
[1760277580596,0.52539611,111510.0,111500.0,4.03111136]
[1760277581126,0.52439611,111510.0,111500.0,4.03111136]
[1760277585245,0.54353094,111510.0,111500.0,4.03111136]
[1760277587241,0.54159094,111510.0,111500.0,4.24424355]
[1760277587594,0.52245611,111510.0,111500.0,4.14423136]
[1760277588006,0.52245611,111510.0,111500.0,4.09139136]
[1760277590521,0.17935611,111510.0,111500.0,4.32360355]
[1760277594028,8.984e-05,111520.0,111510.0,0.17935611]
[1760277594231,0.17942986,111520.0,111510.0,0.38119545]
[1760277594770,0.17942986,111520.0,111510.0,0.29247611]
[1760277599036,8.984e-05,111520.0,111510.0,0.29247611]
[1760277601194,8.984e-05,111520.0,111510.0,0.38200563]
[1760277601441,0.07162362,111560.0,111540.0,0.17929218]
[1760277601442,0.25090637,111560.0,111540.0,0.17929218]
[1760277601616,0.25090637,111560.0,111540.0,0.20474283]
[1760277601753,0.17929179,111550.0,111540.0,0.07803065]
[1760277601952,0.51929179,111550.0,111540.0,0.11504065]
[1760277602159,0.17929179,111550.0,111540.0,0.29434852]
[1760277602564,0.51929179,111550.0,111540.0,0.29434852]
[1760277602932,0.52518179,111550.0,111540.0,0.00015065]
[1760277603294,0.59967624,111550.0,111540.0,0.00015065]
[1760277603501,0.51935611,111510.0,111500.0,4.03052662]
[1760277603683,0.51935611,111510.0,111500.0,4.03067704]
[1760277603684,0.52892611,111510.0,111500.0,4.03067704]
[1760277604670,0.52992611,111510.0,111500.0,4.03067704]
[1760277604874,5.63170163,111510.0,111500.0,3.17792862]
[1760277605279,0.76702152,111510.0,111500.0,3.08348906]
[1760277605479,0.55323186,111510.0,111500.0,3.08348906]
[1760277605618,0.52624611,111510.0,111500.0,3.08348906]
[1760277606426,0.52624611,111510.0,111500.0,3.06548906]
[1760277606627,0.52724611,111510.0,111500.0,3.06548906]
[1760277607093,0.52624611,111510.0,111500.0,3.06548906]
[1760277607235,0.52624611,111510.0,111500.0,3.06703579]
[1760277607438,0.59921105,111510.0,111500.0,3.06703579]
[1760277607888,0.25921105,111510.0,111500.0,3.06703579]
[1760277609182,0.18724611,111510.0,111500.0,3.06703579]
[1760277611366,0.002,111510.0,111500.0,3.36129798]
[1760277611995,0.001,111510.0,111500.0,3.36129798]
[1760277612214,0.001,111510.0,111500.0,3.4508275]
[1760277612820,0.5199087,111530.0,111520.0,0.17934002]
[1760277613083,0.5199087,111530.0,111520.0,0.06231]
[1760277613234,0.5199087,111530.0,111520.0,0.080244]
[1760277613235,0.1799087,111530.0,111520.0,0.080244]
[1760277613439,0.5199087,111530.0,111520.0,0.080244]
[1760277613654,0.5199087,111530.0,111520.0,0.042244]
[1760277613854,0.5199087,111530.0,111520.0,0.067544]
[1760277614055,0.5199087,111530.0,111520.0,0.24688402]
[1760277614265,0.5199087,111530.0,111520.0,0.04961]
[1760277614459,0.5199087,111530.0,111520.0,0.067544]
[1760277615192,0.5199087,111530.0,111520.0,0.24688402]
[1760277615408,0.5199087,111530.0,111520.0,0.22895002]
[1760277615957,0.5199087,111530.0,111520.0,0.28153002]
[1760277616153,0.5199087,111530.0,111520.0,0.22895002]
[1760277616604,0.5199087,111530.0,111520.0,0.04961]
[1760277616770,0.5199087,111530.0,111520.0,0.067544]
[1760277617127,0.5199087,111530.0,111520.0,0.29946402]
[1760277617259,0.5199087,111530.0,111520.0,0.28153002]
[1760277618369,0.5199087,111530.0,111520.0,0.22895002]
[1760277618650,0.59072969,111530.0,111520.0,0.04961]
[1760277618845,0.59072969,111530.0,111520.0,0.22895002]
[1760277619391,0.34058456,111530.0,111520.0,0.28153002]
[1760277619562,0.5199085,111530.0,111520.0,0.28153002]
[1760277619769,0.5199085,111530.0,111520.0,0.22895002]
[1760277620480,0.5199085,111530.0,111520.0,0.04961]
[1760277620973,0.5199085,111530.0,111520.0,0.28153002]
[1760277621790,0.5199085,111530.0,111520.0,0.10219]
[1760277622145,0.5199085,111530.0,111520.0,0.04961]
[1760277622752,0.59072947,111530.0,111520.0,0.04961]
[1760277623154,0.59072947,111530.0,111520.0,0.28153002]
[1760277623354,0.34058456,111530.0,111520.0,0.28153002]
[1760277623695,0.00058456,111530.0,111520.0,0.28153002]
[1760277624099,0.00058456,111530.0,111510.0,0.02626194]
[1760277624299,0.00058456,111530.0,111500.0,1.97223262]
[1760277624300,0.17935611,111510.0,111500.0,1.97223262]
[1760277624466,5.61742829,111510.0,111500.0,1.69240512]
[1760277624671,5.77805782,111510.0,111500.0,1.60151453]
[1760277625054,5.81025443,111510.0,111500.0,1.60151453]
[1760277625260,5.81025443,111510.0,111500.0,0.96842227]
[1760277625442,0.81025443,111510.0,111500.0,0.7721996]
[1760277625663,5.81025443,111510.0,111500.0,0.67745029]
[1760277625860,5.81025443,111510.0,111500.0,0.63345029]
[1760277626013,5.81025443,111510.0,111500.0,0.62879832]
[1760277626201,0.81125443,111510.0,111500.0,0.03887774]
[1760277626401,5.81125443,111510.0,111500.0,1e-08]
[1760277626600,5.61937218,111500.0,111490.0,1e-08]
[1760277626800,5.7396184,111500.0,111490.0,1e-08]
[1760277627003,5.75368594,111500.0,111490.0,1e-08]
[1760277627210,0.54954018,111490.0,111480.0,1e-08]
[1760277627407,0.5939555,111490.0,111480.0,1e-08]
[1760277629952,0.5959555,111490.0,111480.0,1e-08]
[1760277630089,0.63473881,111490.0,111480.0,1e-08]
[1760277630498,0.63473881,111490.0,111480.0,0.00175455]
[1760277630773,0.02533613,111490.0,111480.0,0.00175455]
[1760277630982,0.17989046,111490.0,111480.0,0.04319455]
[1760277631188,0.18089046,111490.0,111480.0,0.07313455]
[1760277632223,0.18189046,111490.0,111480.0,0.07313455]
[1760277632444,0.21801673,111490.0,111480.0,0.07313455]
[1760277632653,0.21601673,111490.0,111480.0,0.07313455]
[1760277632857,0.00150218,111490.0,111480.0,0.10909498]
[1760277633064,0.18089046,111490.0,111480.0,0.13903498]
[1760277633277,0.00050218,111490.0,111480.0,0.31843935]
[1760277633481,0.00050218,111490.0,111480.0,0.30049892]
[1760277633698,0.34050218,111490.0,111480.0,0.30049892]
[1760277634105,0.34056268,111490.0,111480.0,0.30049892]
[1760277635218,0.34050218,111490.0,111480.0,0.30043842]
[1760277636007,0.34050218,111490.0,111480.0,0.23841842]
[1760277636008,0.39248986,111490.0,111480.0,0.23841842]
[1760277636409,0.39248986,111490.0,111480.0,0.05901405]
[1760277636580,0.57187814,111490.0,111480.0,0.05901405]
[1760277638866,0.34050218,111490.0,111480.0,0.31837885]
[1760277639014,0.34050218,111490.0,111480.0,0.30043842]
[1760277639859,0.34050218,111490.0,111480.0,0.33815842]
[1760277641247,0.00050218,111490.0,111480.0,0.42768794]
[1760277645071,0.35050218,111490.0,111480.0,0.42768794]
[1760277645620,0.35050218,111490.0,111480.0,0.44122175]
[1760277646011,0.35050218,111490.0,111480.0,0.42768794]
[1760277649223,0.10621764,111490.0,111480.0,0.42768794]
[1760277652165,0.10621764,111490.0,111480.0,0.42968794]
[1760277658649,0.10621764,111490.0,111480.0,0.42768794]
[1760277658850,0.10621764,111490.0,111480.0,0.42868794]
[1760277661178,0.1168394,111490.0,111480.0,0.09773405]
[1760277661382,0.64451338,111490.0,111480.0,0.001]
[1760277661630,0.73105085,111490.0,111480.0,0.001]
[1760277661855,0.76778814,111490.0,111480.0,0.001]
[1760277662061,0.73903275,111490.0,111480.0,0.001]
[1760277662485,0.17944565,111460.0,111440.0,0.12360337]
[1760277662709,0.21623155,111460.0,111440.0,0.30307132]
[1760277663119,0.21623155,111460.0,111440.0,0.36422132]
[1760277663666,0.17945266,111450.0,111440.0,0.11462994]
[1760277664022,0.17945266,111450.0,111440.0,0.15633994]
[1760277664540,0.51945266,111450.0,111440.0,0.15633994]
[1760277664741,0.60370424,111450.0,111440.0,0.08353994]
[1760277664934,0.60370424,111450.0,111440.0,0.08404212]
[1760277665139,0.42425158,111450.0,111440.0,0.12575212]
[1760277665323,0.58716139,111450.0,111440.0,0.12575212]
[1760277665654,0.58716139,111450.0,111440.0,0.08404212]
[1760277666297,0.58716139,111450.0,111440.0,0.39746089]
[1760277666298,0.34,111450.0,111440.0,0.39746089]
[1760277666739,0.34,111450.0,111440.0,0.33631089]
[1760277668107,0.21623155,111460.0,111440.0,0.33631089]
[1760277668313,0.23275019,111460.0,111440.0,0.33631089]
[1760277668486,0.18777927,111470.0,111440.0,0.33631089]
[1760277668665,0.17944565,111460.0,111440.0,0.33631089]
[1760277669981,0.34,111450.0,111440.0,0.33631089]
[1760277670469,0.34,111450.0,111440.0,0.33865144]
[1760277672676,0.51945266,111450.0,111440.0,0.08638267]
[1760277673212,0.17945266,111450.0,111440.0,0.08638267]
[1760277673429,0.21389915,111450.0,111440.0,0.08638267]
[1760277673917,0.17945266,111450.0,111440.0,0.08638267]
[1760277674156,0.17945266,111450.0,111440.0,0.12809267]
[1760277674589,0.17945266,111450.0,111440.0,0.08638267]
[1760277676798,0.2856703,111450.0,111440.0,0.08638267]
[1760277677954,0.2856703,111450.0,111440.0,0.12809267]
[1760277678563,0.3321819,111450.0,111440.0,0.12809267]
[1760277679189,0.3321819,111450.0,111440.0,0.08638267]
[1760277679388,0.2856703,111450.0,111440.0,0.23827954]
[1760277679590,0.2856703,111450.0,111440.0,0.22033267]
[1760277679756,0.2856703,111450.0,111440.0,0.15918267]
[1760277680773,0.2856703,111450.0,111440.0,0.22033267]
[1760277680971,0.2856703,111450.0,111440.0,0.15918267]
[1760277682062,0.10621764,111450.0,111440.0,0.41774831]
[1760277682262,0.10621764,111450.0,111440.0,0.39980144]
[1760277682439,0.12271808,111450.0,111440.0,0.39980144]
[1760277683270,0.12271808,111450.0,111440.0,0.40080144]
[1760277686367,0.12271808,111450.0,111440.0,0.49033096]
[1760277686520,0.10621764,111450.0,111440.0,0.5604215]
[1760277686722,0.12709579,111480.0,111450.0,0.17943703]
[1760277686928,0.17942095,111470.0,111460.0,0.11018365]
[1760277687125,0.19597852,111470.0,111460.0,0.15189365]
[1760277687329,0.2042625,111470.0,111460.0,0.13395]
[1760277687532,0.20426202,111470.0,111460.0,0.15189365]
[1760277688099,0.20426202,111470.0,111460.0,0.09074365]
[1760277688629,0.2283273,111470.0,111460.0,0.09074365]
[1760277689060,0.20426202,111470.0,111460.0,0.09074365]
[1760277689891,0.20432047,111470.0,111460.0,0.11052]
[1760277690105,0.20432047,111470.0,111460.0,0.12846365]
[1760277690300,0.20432047,111470.0,111460.0,0.11052]
[1760277691402,0.20432047,111470.0,111460.0,0.28995656]
[1760277691610,0.20432047,111470.0,111460.0,0.11052]
[1760277692865,0.20432047,111470.0,111460.0,0.28995656]
[1760277693222,0.20432047,111470.0,111460.0,0.29112665]
[1760277693610,0.20432047,111470.0,111460.0,0.11169009]
[1760277693984,0.20432047,111470.0,111460.0,0.29112665]
[1760277694352,0.20432047,111470.0,111460.0,0.11169009]
[1760277694674,0.20432047,111470.0,111460.0,0.03889009]
[1760277694910,0.20432047,111470.0,111460.0,0.08175009]
[1760277695111,0.20432047,111470.0,111460.0,0.11214009]
[1760277695479,0.2283916,111470.0,111460.0,0.06928009]
[1760277695685,0.2283916,111470.0,111460.0,0.03889009]
[1760277695847,0.20432047,111470.0,111460.0,0.17830009]
[1760277696047,0.20432047,111470.0,111460.0,0.11214009]
[1760277699656,0.0421315,111470.0,111460.0,0.11214009]
[1760277700638,0.0421315,111470.0,111460.0,0.03889009]
[1760277700843,0.08398373,111470.0,111460.0,0.03889009]
[1760277702427,0.0421315,111470.0,111460.0,0.03889009]
[1760277702579,0.0421315,111470.0,111460.0,0.17830009]
[1760277702997,0.0421315,111470.0,111460.0,0.11214009]
[1760277706238,0.0421315,111470.0,111460.0,0.17294009]
[1760277706647,0.02010103,111490.0,111460.0,0.45087799]
[1760277706820,0.00096224,111490.0,111480.0,0.21094437]
[1760277707003,0.00096224,111490.0,111480.0,0.31410437]
[1760277707246,0.18035052,111490.0,111480.0,0.31410437]
[1760277708031,0.18035052,111490.0,111480.0,0.31419421]
[1760277709574,0.18035052,111490.0,111480.0,0.13478984]
[1760277709798,0.18035052,111490.0,111480.0,0.15273027]
[1760277710237,0.21721979,111490.0,111480.0,0.15273027]
[1760277710461,0.21721979,111490.0,111480.0,0.13478984]
[1760277710706,0.18035052,111490.0,111480.0,0.33213464]
[1760277710907,0.18035052,111490.0,111480.0,0.13478984]
[1760277711232,0.18035052,111490.0,111480.0,0.15273027]
[1760277711638,0.18035052,111490.0,111480.0,0.33213464]
[1760277711854,0.18035052,111490.0,111480.0,0.31419421]
[1760277712662,0.18035052,111490.0,111480.0,0.35639489]
[1760277713054,0.00096224,111490.0,111480.0,0.31419421]
[1760277713726,0.00096224,111490.0,111480.0,0.40372373]
[1760277714102,0.31710398,111540.0,111510.0,0.17935239]
[1760277714303,0.17933062,111530.0,111520.0,0.110274]
[1760277714510,0.1876376,111530.0,111520.0,0.1347]
[1760277714907,0.17933062,111530.0,111520.0,0.1347]
[1760277716907,0.17933062,111530.0,111520.0,0.0739]
[1760277717548,0.17933062,111530.0,111520.0,0.091834]
[1760277721410,0.17933062,111530.0,111520.0,0.154624]
[1760277721642,0.18835253,111540.0,111520.0,0.31603002]
[1760277721843,0.18166245,111530.0,111520.0,0.13669]
[1760277721966,0.18166245,111530.0,111520.0,0.154624]
[1760277722169,0.18166245,111530.0,111520.0,0.33396402]
[1760277722367,0.18166245,111530.0,111520.0,0.31603002]
[1760277722567,0.00233851,111530.0,111520.0,0.36872253]
[1760277722994,0.17931214,111540.0,111520.0,0.36872253]
[1760277722995,0.17930842,111540.0,111520.0,0.36872253]
[1760277723214,0.17930787,111540.0,111530.0,0.32849633]
[1760277723418,0.17930787,111540.0,111530.0,0.35461394]
[1760277724100,0.17930787,111540.0,111530.0,0.17529]
[1760277724299,0.17930787,111540.0,111530.0,0.19322239]
[1760277724509,0.17930787,111540.0,111530.0,0.17529]
[1760277725106,0.17930787,111540.0,111530.0,0.38652381]
[1760277725365,0.17930787,111540.0,111530.0,0.17529]
[1760277725762,0.17930787,111540.0,111530.0,0.35461394]
[1760277726630,0.47802366,111550.0,111530.0,0.35561394]
[1760277726837,0.4864341,111550.0,111540.0,0.06279]
[1760277727042,0.1464341,111550.0,111540.0,0.13757]
[1760277727242,0.1464341,111550.0,111540.0,0.31687787]
[1760277728248,0.1464341,111550.0,111540.0,0.13757]
[1760277728452,0.1464341,111550.0,111540.0,0.31687787]
[1760277729078,0.1464341,111550.0,111540.0,0.13757]
[1760277729279,0.1464341,111550.0,111540.0,0.15550078]
[1760277729444,0.14760292,111550.0,111540.0,0.15550078]
[1760277729957,0.14760096,111550.0,111540.0,0.15550078]
[1760277730531,0.17930787,111540.0,111530.0,0.06845]
[1760277730750,0.18758128,111540.0,111530.0,0.17529]
[1760277731398,0.18758128,111540.0,111530.0,0.35461394]
[1760277732083,0.18758128,111540.0,111530.0,0.17529]
[1760277732527,0.18758128,111540.0,111530.0,0.17629]
[1760277733748,0.18758128,111540.0,111530.0,0.35561394]
[1760277734949,0.00827341,111540.0,111530.0,0.35561394]
[1760277735151,0.02497831,111550.0,111540.0,0.17930787]
[1760277735420,0.2042701,111550.0,111540.0,0.25408787]
[1760277735585,0.2042701,111550.0,111540.0,0.31687787]
[1760277736022,0.02497831,111550.0,111540.0,0.31687787]
[1760277736323,0.20543892,111550.0,111540.0,0.31687787]
[1760277736548,0.02614713,111550.0,111540.0,0.31687787]
[1760277737427,0.0095773,111550.0,111540.0,0.31687787]
[1760277737882,0.0095773,111550.0,111540.0,0.40640739]
[1760277739018,0.0095773,111550.0,111540.0,0.40740739]
[1760277740378,0.0095773,111550.0,111540.0,0.43755929]
[1760277740725,0.0095773,111550.0,111540.0,0.50609261]
[1760277741164,0.0096104,111550.0,111540.0,0.50609261]
[1760277741330,0.00961203,111550.0,111540.0,0.50609261]
[1760277742902,0.00130389,111550.0,111540.0,0.50609261]
[1760277743359,0.00961376,111550.0,111540.0,0.50609261]
[1760277744115,0.00130389,111550.0,111540.0,0.50609261]
[1760277747492,0.00961658,111550.0,111540.0,0.50609261]
[1760277747875,0.00130389,111550.0,111540.0,0.50609261]
[1760277748446,0.00961613,111550.0,111540.0,0.50609261]
[1760277750751,0.0002,111580.0,111570.0,0.17925965]
[1760277750972,0.0002,111580.0,111570.0,0.19718561]
[1760277751317,0.00195261,111580.0,111570.0,0.33275561]
[1760277752198,0.00195261,111580.0,111570.0,0.42228513]
[1760277752435,0.00195261,111580.0,111570.0,0.45243703]
[1760277752436,0.00295261,111580.0,111570.0,0.45243703]
[1760277752898,0.00295261,111580.0,111570.0,0.45343703]
[1760277753746,0.00195261,111580.0,111570.0,0.45343703]
[1760277754166,0.00195261,111580.0,111570.0,0.45443703]
[1760277756770,0.00195261,111580.0,111570.0,0.43651107]
[1760277757383,0.16340546,111600.0,111580.0,0.17924359]
[1760277757596,0.17922756,111590.0,111580.0,0.36145311]
[1760277757806,0.16355609,111600.0,111580.0,0.31481359]
[1760277757807,0.14694747,111600.0,111580.0,0.31481359]
[1760277758013,0.16355352,111600.0,111590.0,0.03089]
[1760277758155,0.16355352,111600.0,111590.0,0.07378]
[1760277759169,0.16355352,111600.0,111590.0,0.11146]
[1760277760683,0.20066009,111600.0,111590.0,0.11146]
[1760277760861,0.16355342,111600.0,111590.0,0.17325]
[1760277761058,0.19584463,111600.0,111590.0,0.17325]
[1760277761221,0.17923855,111600.0,111590.0,0.17325]
[1760277761978,0.17921146,111600.0,111590.0,0.35247752]
[1760277762177,0.17921146,111600.0,111590.0,0.40873832]
[1760277762730,0.18751703,111600.0,111590.0,0.40873832]
[1760277763425,0.18868507,111600.0,111590.0,0.40873832]
[1760277764796,0.00947361,111600.0,111590.0,0.35247752]
[1760277765119,0.00947361,111600.0,111590.0,0.44200704]
[1760277766157,0.00947361,111600.0,111590.0,0.47215894]
[1760277766365,0.00947361,111600.0,111590.0,0.47315894]
[1760277766762,0.00947361,111600.0,111590.0,0.47415894]
[1760277766966,0.00116804,111600.0,111590.0,0.88258788]
[1760277769018,0.00116804,111600.0,111590.0,0.88158788]
[1760277769773,0.00116804,111600.0,111590.0,0.88258788]
[1760277773447,0.00116804,111600.0,111590.0,0.90758787]
[1760277775616,0.07162362,111640.0,111590.0,0.90758787]
[1760277775853,0.26853339,111640.0,111630.0,0.03226]